[Event "*** Titled Tuesday Blitz"]
[Site "Chess.com"]
[Date "2020.05.26"]
[Round "9"]
[White "StephenDedalus83"]
[Black "BlackWidow515"]
[Result "1-0"]
[WhiteElo "2714"]
[BlackElo "2146"]
[TimeControl "180+1"]
[EndTime "11:49:23 PDT"]
[Termination "StephenDedalus83 won by resignation"]

1. e4 {[%clk 0:03:00.9]} 1... e5 {[%clk 0:02:59.8]} 2. Nf3 {[%clk 0:03:00.2]}
2... Nc6 {[%clk 0:03:00]} 3. Bb5 {[%clk 0:03:00.1]} 3... a6 {[%clk 0:03:00.1]}
4. Ba4 {[%clk 0:02:59.8]} 4... Nf6 {[%clk 0:03:00.4]} 5. O-O {[%clk 0:03:00]}
5... Be7 {[%clk 0:03:01]} 6. Re1 {[%clk 0:03:00.1]} 6... b5 {[%clk 0:03:01.6]}
7. Bb3 {[%clk 0:03:00.6]} 7... d6 {[%clk 0:03:01.8]} 8. c3 {[%clk 0:03:00]} 8...
O-O {[%clk 0:03:01.3]} 9. d3 {[%clk 0:03:00.6]} 9... Nb8 {[%clk 0:02:58]} 10.
Nbd2 {[%clk 0:03:00]} 10... c5 {[%clk 0:02:58]} 11. Nf1 {[%clk 0:02:59.6]} 11...
Nbd7 {[%clk 0:02:58.4]} 12. Ng3 {[%clk 0:02:57.5]} 12... a5 {[%clk 0:02:53.8]}
13. Nf5 {[%clk 0:02:56.4]} 13... a4 {[%clk 0:02:52]} 14. Bc2 {[%clk 0:02:56.4]}
14... Re8 {[%clk 0:02:52.5]} 15. Nxe7+ {[%clk 0:02:54.9]} 15... Qxe7 {[%clk
0:02:51.6]} 16. Nh4 {[%clk 0:02:51.6]} 16... Nf8 {[%clk 0:02:50.6]} 17. Qf3
{[%clk 0:02:50.5]} 17... Ng6 {[%clk 0:02:49.8]} 18. Nf5 {[%clk 0:02:49.5]} 18...
Qc7 {[%clk 0:02:46.7]} 19. Nh6+ {[%clk 0:02:42.6]} 19... Kf8 {[%clk 0:02:30.2]}
20. Bg5 {[%clk 0:02:42]} 20... Re6 {[%clk 0:02:29.8]} 21. Rac1 {[%clk
0:02:33.6]} 21... Ne8 {[%clk 0:02:08.7]} 22. Nf5 {[%clk 0:02:32.5]} 22... h6
{[%clk 0:02:01.7]} 23. Bd2 {[%clk 0:02:31.5]} 23... Rf6 {[%clk 0:02:02]} 24. Qg3
{[%clk 0:02:24.8]} 24... Bxf5 {[%clk 0:01:54.7]} 25. exf5 {[%clk 0:02:24]} 25...
Rxf5 {[%clk 0:01:55.1]} 26. d4 {[%clk 0:02:23.9]} 26... Rf6 {[%clk 0:01:55.6]}
27. dxc5 {[%clk 0:02:22.9]} 27... dxc5 {[%clk 0:01:48.1]} 28. Bxg6 {[%clk
0:02:21.2]} 28... Rxg6 {[%clk 0:01:47.6]} 29. Qxe5 {[%clk 0:02:21.1]} 29... Qxe5
{[%clk 0:01:46.4]} 30. Rxe5 {[%clk 0:02:20.3]} 30... Rd8 {[%clk 0:01:46.7]} 31.
Be3 {[%clk 0:02:19.6]} 31... Rgd6 {[%clk 0:01:35.8]} 32. Bxc5 {[%clk 0:02:19.3]}
32... f6 {[%clk 0:01:30.1]} 33. Bxd6+ {[%clk 0:02:12.5]} 33... Rxd6 {[%clk
0:01:28.9]} 34. Rxb5 {[%clk 0:02:12.3]} 34... Nc7 {[%clk 0:01:29.4]} 35. Rb4
{[%clk 0:02:12]} 35... Rd2 {[%clk 0:01:29.4]} 36. Kf1 {[%clk 0:02:10.5]} 36...
Nd5 {[%clk 0:01:25.9]} 37. Rd4 {[%clk 0:02:09.8]} 1-0

[Event "*** Titled Tuesday Blitz"]
[Site "Chess.com"]
[Date "2020.05.26"]
[Round "9"]
[White "Tejas_Rama"]
[Black "RATNAKARAN"]
[Result "0-1"]
[WhiteElo "2387"]
[BlackElo "2536"]
[TimeControl "180+1"]
[EndTime "11:49:26 PDT"]
[Termination "RATNAKARAN won by resignation"]

1. Nf3 {[%clk 0:03:00.9]} 1... d5 {[%clk 0:02:58.8]} 2. c4 {[%clk 0:02:59.4]}
2... dxc4 {[%clk 0:02:58.5]} 3. e3 {[%clk 0:02:58.1]} 3... b5 {[%clk 0:02:57.8]}
4. a4 {[%clk 0:02:51.7]} 4... c6 {[%clk 0:02:57.4]} 5. axb5 {[%clk 0:02:51.7]}
5... cxb5 {[%clk 0:02:57.3]} 6. Nd4 {[%clk 0:02:52.3]} 6... Qd7 {[%clk 0:02:54]}
7. Ra5 {[%clk 0:02:38.8]} 7... Nc6 {[%clk 0:02:46.6]} 8. Nxc6 {[%clk 0:02:29.6]}
8... Qxc6 {[%clk 0:02:47.5]} 9. Na3 {[%clk 0:02:16]} 9... a6 {[%clk 0:02:46.1]}
10. d3 {[%clk 0:01:48.7]} 10... e6 {[%clk 0:02:34.5]} 11. Bd2 {[%clk 0:01:43.3]}
11... cxd3 {[%clk 0:02:33.8]} 12. Bxd3 {[%clk 0:01:43.8]} 12... Qxg2 {[%clk
0:02:30.9]} 13. Rf1 {[%clk 0:01:40.3]} 13... Nf6 {[%clk 0:02:24.6]} 14. e4
{[%clk 0:01:30.2]} 14... Bxa3 {[%clk 0:02:20.1]} 15. bxa3 {[%clk 0:01:18.5]}
15... O-O {[%clk 0:02:18]} 16. e5 {[%clk 0:01:14.5]} 16... Ng4 {[%clk
0:02:14.9]} 17. Qc2 {[%clk 0:01:05.8]} 17... Nxh2 {[%clk 0:02:12.3]} 18. Bf4
{[%clk 0:00:39.7]} 18... Nxf1 {[%clk 0:02:00.6]} 19. Bxh7+ {[%clk 0:00:39.6]}
19... Kh8 {[%clk 0:01:59]} 20. Be4 {[%clk 0:00:40.2]} 20... Qg1 {[%clk
0:01:55.8]} 21. Qc3 {[%clk 0:00:30.5]} 21... Ng3+ {[%clk 0:01:53.2]} 22. Kd2
{[%clk 0:00:26.7]} 22... Nxe4+ {[%clk 0:01:52.9]} 0-1

[Event "*** Titled Tuesday Blitz"]
[Site "Chess.com"]
[Date "2020.05.26"]
[Round "9"]
[White "druskacik"]
[Black "rpragchess"]
[Result "1-0"]
[WhiteElo "2600"]
[BlackElo "2804"]
[TimeControl "180+1"]
[EndTime "11:49:30 PDT"]
[Termination "druskacik won by resignation"]

1. e4 {[%clk 0:02:56.6]} 1... d5 {[%clk 0:02:51.5]} 2. exd5 {[%clk 0:02:53.3]}
2... Qxd5 {[%clk 0:02:52.4]} 3. Nc3 {[%clk 0:02:53.8]} 3... Qd6 {[%clk
0:02:52.5]} 4. d4 {[%clk 0:02:52.8]} 4... c6 {[%clk 0:02:52.9]} 5. Nf3 {[%clk
0:02:53.3]} 5... Nf6 {[%clk 0:02:52.9]} 6. Ne5 {[%clk 0:02:53.6]} 6... Nbd7
{[%clk 0:02:45.8]} 7. f4 {[%clk 0:02:53.6]} 7... Nb6 {[%clk 0:02:42.5]} 8. g4
{[%clk 0:02:36.1]} 8... h6 {[%clk 0:02:24.9]} 9. Bg2 {[%clk 0:02:32.3]} 9... e6
{[%clk 0:02:06.9]} 10. O-O {[%clk 0:02:15.4]} 10... c5 {[%clk 0:02:05.3]} 11.
Nb5 {[%clk 0:01:53]} 11... Qd8 {[%clk 0:02:02.4]} 12. g5 {[%clk 0:01:52.9]}
12... Nfd7 {[%clk 0:01:45.9]} 13. g6 {[%clk 0:01:40.1]} 13... Nxe5 {[%clk
0:01:43]} 14. fxe5 {[%clk 0:01:38]} 14... fxg6 {[%clk 0:01:42.1]} 15. Qg4 {[%clk
0:01:33.5]} 15... Nd5 {[%clk 0:01:02.6]} 16. Qxg6+ {[%clk 0:01:30.7]} 16... Kd7
{[%clk 0:01:02.7]} 17. Bxd5 {[%clk 0:01:22.1]} 17... exd5 {[%clk 0:01:02.4]} 18.
e6+ {[%clk 0:01:22.4]} 18... Kc6 {[%clk 0:00:52.9]} 19. e7+ {[%clk 0:01:21.6]}
1-0

[Event "*** Titled Tuesday Blitz"]
[Site "Chess.com"]
[Date "2020.05.26"]
[Round "9"]
[White "SamuelGhimpu2003"]
[Black "MasterKroket"]
[Result "1-0"]
[WhiteElo "2572"]
[BlackElo "2407"]
[TimeControl "180+1"]
[EndTime "11:49:37 PDT"]
[Termination "SamuelGhimpu2003 won by resignation"]

1. e4 {[%clk 0:03:00.9]} 1... c5 {[%clk 0:03:00.1]} 2. Nf3 {[%clk 0:03:01.1]}
2... e6 {[%clk 0:03:00.8]} 3. d4 {[%clk 0:03:02]} 3... cxd4 {[%clk 0:03:01.6]}
4. Nxd4 {[%clk 0:03:01.1]} 4... Nc6 {[%clk 0:03:02.4]} 5. Nc3 {[%clk 0:03:00.9]}
5... Qc7 {[%clk 0:03:02.8]} 6. f4 {[%clk 0:02:59.2]} 6... Nxd4 {[%clk
0:03:00.7]} 7. Qxd4 {[%clk 0:02:59]} 7... b6 {[%clk 0:03:01.4]} 8. Be3 {[%clk
0:02:58.9]} 8... Bb7 {[%clk 0:02:57.7]} 9. O-O-O {[%clk 0:02:47.2]} 9... Nf6
{[%clk 0:02:57.6]} 10. e5 {[%clk 0:02:47]} 10... Bc5 {[%clk 0:02:54.5]} 11. Qd2
{[%clk 0:02:45.7]} 11... Bxe3 {[%clk 0:02:52.2]} 12. Qxe3 {[%clk 0:02:46.6]}
12... Nd5 {[%clk 0:02:49.7]} 13. Nxd5 {[%clk 0:02:44.3]} 13... Bxd5 {[%clk
0:02:48.5]} 14. Kb1 {[%clk 0:02:45.2]} 14... O-O {[%clk 0:02:45.7]} 15. c4
{[%clk 0:02:33.4]} 15... Bc6 {[%clk 0:02:13.7]} 16. Rd6 {[%clk 0:02:29.1]} 16...
f6 {[%clk 0:02:13.7]} 17. Bd3 {[%clk 0:02:26.4]} 17... fxe5 {[%clk 0:02:13.1]}
18. fxe5 {[%clk 0:02:26.2]} 18... Rf7 {[%clk 0:02:08]} 19. Rd4 {[%clk
0:02:11.1]} 19... Raf8 {[%clk 0:02:07.7]} 20. Rh4 {[%clk 0:02:07.2]} 20... h6
{[%clk 0:01:55]} 21. Rg4 {[%clk 0:02:07.4]} 21... Kh8 {[%clk 0:01:47.5]} 22. a3
{[%clk 0:01:59.6]} 22... d5 {[%clk 0:01:33]} 23. Rc1 {[%clk 0:01:54.2]} 23...
Qd7 {[%clk 0:01:30.9]} 24. Qg3 {[%clk 0:01:49.1]} 24... dxc4 {[%clk 0:01:28.6]}
25. Bxc4 {[%clk 0:01:48.1]} 25... Qd2 {[%clk 0:01:20.2]} 26. Qd3 {[%clk
0:01:39.4]} 26... Qxd3+ {[%clk 0:01:15.8]} 27. Bxd3 {[%clk 0:01:40.3]} 27...
Bxg2 {[%clk 0:01:16.4]} 28. Rxg2 {[%clk 0:01:38.7]} 28... Rd8 {[%clk 0:01:12.2]}
29. Bg6 {[%clk 0:01:36.6]} 29... Rf4 {[%clk 0:01:02.1]} 30. Rgc2 {[%clk
0:01:27.6]} 1-0

[Event "*** Titled Tuesday Blitz"]
[Site "Chess.com"]
[Date "2020.05.26"]
[Round "9"]
[White "Mikhal867"]
[Black "Nor1lsk"]
[Result "0-1"]
[WhiteElo "2213"]
[BlackElo "2602"]
[TimeControl "180+1"]
[EndTime "11:49:44 PDT"]
[Termination "Nor1lsk won by resignation"]

1. c4 {[%clk 0:03:00.3]} 1... g6 {[%clk 0:02:58.8]} 2. d4 {[%clk 0:02:59.7]}
2... Bg7 {[%clk 0:02:57.8]} 3. e4 {[%clk 0:02:59.4]} 3... c5 {[%clk 0:02:56]} 4.
d5 {[%clk 0:02:58.9]} 4... d6 {[%clk 0:02:55.5]} 5. Nc3 {[%clk 0:02:58.3]} 5...
e6 {[%clk 0:02:55]} 6. Nf3 {[%clk 0:02:56.3]} 6... Ne7 {[%clk 0:02:54.3]} 7. Bd3
{[%clk 0:02:55.7]} 7... O-O {[%clk 0:02:53]} 8. h3 {[%clk 0:02:54]} 8... h6
{[%clk 0:02:50.3]} 9. O-O {[%clk 0:02:53.4]} 9... g5 {[%clk 0:02:46.5]} 10. Nh2
{[%clk 0:02:42.6]} 10... f5 {[%clk 0:02:31.5]} 11. dxe6 {[%clk 0:02:39]} 11...
f4 {[%clk 0:02:29.9]} 12. e5 {[%clk 0:02:26.4]} 12... dxe5 {[%clk 0:02:16.4]}
13. Be4 {[%clk 0:02:16]} 13... Nbc6 {[%clk 0:02:12.8]} 14. Nb5 {[%clk
0:01:48.2]} 14... Bxe6 {[%clk 0:02:08.9]} 15. b3 {[%clk 0:01:42.3]} 15... Bf5
{[%clk 0:01:47]} 16. Qf3 {[%clk 0:01:31.4]} 16... Nd4 {[%clk 0:01:41]} 17. Nxd4
{[%clk 0:01:29.9]} 17... Qxd4 {[%clk 0:01:40.5]} 18. Bxf5 {[%clk 0:01:28.4]}
18... Nxf5 {[%clk 0:01:38.8]} 19. Ba3 {[%clk 0:01:21.9]} 19... e4 {[%clk
0:01:36.6]} 20. Qh5 {[%clk 0:01:18.6]} 20... Ng3 {[%clk 0:01:29.6]} 21. Qg6
{[%clk 0:01:13.2]} 21... Rf6 {[%clk 0:01:29]} 0-1

[Event "*** Titled Tuesday Blitz"]
[Site "Chess.com"]
[Date "2020.05.26"]
[Round "9"]
[White "Danfii"]
[Black "JosefineHeinemann"]
[Result "0-1"]
[WhiteElo "2416"]
[BlackElo "2527"]
[TimeControl "180+1"]
[EndTime "11:49:46 PDT"]
[Termination "JosefineHeinemann won by resignation"]

1. e4 {[%clk 0:03:00.9]} 1... e5 {[%clk 0:02:59.3]} 2. Nf3 {[%clk 0:03:00.8]}
2... Nc6 {[%clk 0:02:57.5]} 3. Bc4 {[%clk 0:03:00.6]} 3... Bc5 {[%clk
0:02:56.2]} 4. O-O {[%clk 0:03:00.2]} 4... Nf6 {[%clk 0:02:53.2]} 5. d3 {[%clk
0:03:00.3]} 5... O-O {[%clk 0:02:45.3]} 6. Nbd2 {[%clk 0:02:59.7]} 6... d5
{[%clk 0:02:40.3]} 7. exd5 {[%clk 0:03:00.6]} 7... Nxd5 {[%clk 0:02:39.4]} 8.
Ne4 {[%clk 0:03:00.4]} 8... Bb6 {[%clk 0:02:37.1]} 9. Re1 {[%clk 0:03:00.4]}
9... f6 {[%clk 0:02:31.7]} 10. a4 {[%clk 0:02:47.3]} 10... a5 {[%clk 0:02:28.4]}
11. c3 {[%clk 0:02:28.2]} 11... Kh8 {[%clk 0:02:25.5]} 12. Qb3 {[%clk
0:02:25.8]} 12... Be6 {[%clk 0:02:21.9]} 13. Ng3 {[%clk 0:01:57.3]} 13... Qd7
{[%clk 0:02:20.1]} 14. d4 {[%clk 0:01:52.5]} 14... Rad8 {[%clk 0:02:14.6]} 15.
dxe5 {[%clk 0:01:42.2]} 15... Nxe5 {[%clk 0:02:13.8]} 16. Nxe5 {[%clk
0:01:36.6]} 16... fxe5 {[%clk 0:02:14.7]} 17. Ne4 {[%clk 0:01:34.4]} 17... Bf5
{[%clk 0:02:08.6]} 18. Bxd5 {[%clk 0:01:10.8]} 18... Bxe4 {[%clk 0:02:08.3]} 19.
Bxe4 {[%clk 0:01:02.8]} 19... Bxf2+ {[%clk 0:02:06.1]} 20. Kf1 {[%clk
0:01:02.9]} 20... Bxe1+ {[%clk 0:02:06.7]} 21. Kxe1 {[%clk 0:01:03.8]} 21... Qg4
{[%clk 0:01:54.3]} 22. Bf3 {[%clk 0:00:56.7]} 22... Qh4+ {[%clk 0:01:50.6]} 23.
Ke2 {[%clk 0:00:17.9]} 23... e4 {[%clk 0:01:48.3]} 0-1

[Event "*** Titled Tuesday Blitz"]
[Site "Chess.com"]
[Date "2020.05.26"]
[Round "9"]
[White "talaicito"]
[Black "Ladislav1969"]
[Result "0-1"]
[WhiteElo "2155"]
[BlackElo "2323"]
[TimeControl "180+1"]
[EndTime "11:49:55 PDT"]
[Termination "Ladislav1969 won by resignation"]

1. d4 {[%clk 0:02:34]} 1... Nf6 {[%clk 0:02:58]} 2. Nc3 {[%clk 0:02:32.7]} 2...
d5 {[%clk 0:02:57.1]} 3. Bf4 {[%clk 0:02:32.2]} 3... e6 {[%clk 0:02:52.9]} 4. e3
{[%clk 0:02:32.3]} 4... Bd6 {[%clk 0:02:52.5]} 5. Nf3 {[%clk 0:02:32.4]} 5...
O-O {[%clk 0:02:50.6]} 6. Bd3 {[%clk 0:02:31.7]} 6... b6 {[%clk 0:02:49.9]} 7.
O-O {[%clk 0:02:27]} 7... c5 {[%clk 0:02:49.5]} 8. dxc5 {[%clk 0:02:23.4]} 8...
Bxf4 {[%clk 0:02:43]} 9. exf4 {[%clk 0:02:22.7]} 9... bxc5 {[%clk 0:02:43]} 10.
b3 {[%clk 0:02:18.8]} 10... Nc6 {[%clk 0:02:34.1]} 11. Ne5 {[%clk 0:02:17]}
11... Nd4 {[%clk 0:02:33]} 12. Ne2 {[%clk 0:02:12.7]} 12... Nxe2+ {[%clk
0:02:27.6]} 13. Qxe2 {[%clk 0:02:13.6]} 13... a5 {[%clk 0:02:27.4]} 14. a4
{[%clk 0:02:09.6]} 14... Qb6 {[%clk 0:02:25]} 15. g4 {[%clk 0:02:03.6]} 15... c4
{[%clk 0:02:15.5]} 16. bxc4 {[%clk 0:01:56.3]} 16... dxc4 {[%clk 0:02:15.4]} 17.
Nxc4 {[%clk 0:01:55.2]} 17... Qd4 {[%clk 0:02:12.8]} 18. g5 {[%clk 0:01:48.3]}
18... Nd5 {[%clk 0:02:07.6]} 19. Qe4 {[%clk 0:01:44.1]} 19... Qxe4 {[%clk
0:01:54.7]} 20. Bxe4 {[%clk 0:01:45]} 20... Ba6 {[%clk 0:01:54.8]} 21. Bd3
{[%clk 0:01:11.8]} 21... Nxf4 {[%clk 0:01:48.9]} 22. Nxa5 {[%clk 0:00:56.4]}
22... Bxd3 {[%clk 0:01:47.1]} 23. cxd3 {[%clk 0:00:53.9]} 23... Rxa5 {[%clk
0:01:46.1]} 24. Rfd1 {[%clk 0:00:51.1]} 24... Rfa8 {[%clk 0:01:39.1]} 25. h4
{[%clk 0:00:49.3]} 25... Rxa4 {[%clk 0:01:37]} 26. Rab1 {[%clk 0:00:43.1]} 26...
Nd5 {[%clk 0:01:33.7]} 27. d4 {[%clk 0:00:36.2]} 27... Nc3 {[%clk 0:01:31.9]}
0-1

[Event "*** Titled Tuesday Blitz"]
[Site "Chess.com"]
[Date "2020.05.26"]
[Round "9"]
[White "MFguimaraes"]
[Black "AEMEffi"]
[Result "1-0"]
[WhiteElo "2493"]
[BlackElo "2307"]
[TimeControl "180+1"]
[EndTime "11:50:01 PDT"]
[Termination "MFguimaraes won on time"]

1. e4 {[%clk 0:03:00.9]} 1... e5 {[%clk 0:02:58.3]} 2. Nf3 {[%clk 0:03:01.1]}
2... Nc6 {[%clk 0:02:58.9]} 3. Bc4 {[%clk 0:03:01.5]} 3... Bc5 {[%clk
0:02:58.4]} 4. b4 {[%clk 0:03:01.3]} 4... Bxb4 {[%clk 0:02:54.6]} 5. c3 {[%clk
0:03:01.5]} 5... Ba5 {[%clk 0:02:44.2]} 6. d4 {[%clk 0:02:59.6]} 6... b5 {[%clk
0:02:37.9]} 7. Bxb5 {[%clk 0:02:57.8]} 7... Nxd4 {[%clk 0:02:36.3]} 8. Nxd4
{[%clk 0:02:58.2]} 8... exd4 {[%clk 0:02:35.6]} 9. Qxd4 {[%clk 0:02:58]} 9...
Qf6 {[%clk 0:02:34.8]} 10. e5 {[%clk 0:02:53.6]} 10... Qb6 {[%clk 0:02:32.3]}
11. Qd3 {[%clk 0:02:47.7]} 11... Rb8 {[%clk 0:02:32.4]} 12. Na3 {[%clk
0:02:43.7]} 12... Qc5 {[%clk 0:02:11.6]} 13. O-O {[%clk 0:02:36.1]} 13... Qxc3
{[%clk 0:02:04.8]} 14. Qe2 {[%clk 0:02:20.6]} 14... Qxa1 {[%clk 0:01:46.5]} 15.
Bb2 {[%clk 0:02:20.6]} 15... Qxa2 {[%clk 0:01:45.8]} 16. Nc4 {[%clk 0:02:11.2]}
16... Rxb5 {[%clk 0:01:35.2]} 17. Nd6+ {[%clk 0:02:10.4]} 17... cxd6 {[%clk
0:01:34.5]} 18. Qxb5 {[%clk 0:02:11.3]} 18... d5 {[%clk 0:00:58.2]} 19. Ra1
{[%clk 0:01:59.3]} 19... Qc4 {[%clk 0:00:52]} 20. Qxa5 {[%clk 0:01:59.6]} 20...
Ne7 {[%clk 0:00:45.6]} 21. Ba3 {[%clk 0:01:59.7]} 21... h5 {[%clk 0:00:12.6]}
22. Rc1 {[%clk 0:01:58]} 22... Qa6 {[%clk 0:00:12.4]} 23. Qb4 {[%clk 0:01:53.6]}
23... Nc6 {[%clk 0:00:09.6]} 24. Rxc6 {[%clk 0:01:51.3]} 1-0

[Event "*** Titled Tuesday Blitz"]
[Site "Chess.com"]
[Date "2020.05.26"]
[Round "9"]
[White "Tlerus"]
[Black "Shield12"]
[Result "0-1"]
[WhiteElo "2577"]
[BlackElo "2801"]
[TimeControl "180+1"]
[EndTime "11:50:04 PDT"]
[Termination "Shield12 won by resignation"]

1. e4 {[%clk 0:03:00.9]} 1... c5 {[%clk 0:02:59.7]} 2. Nf3 {[%clk 0:03:00.8]}
2... Nc6 {[%clk 0:03:00.2]} 3. c3 {[%clk 0:03:01.2]} 3... Nf6 {[%clk 0:03:00.5]}
4. e5 {[%clk 0:03:01.2]} 4... Nd5 {[%clk 0:03:01.1]} 5. d4 {[%clk 0:03:01.8]}
5... cxd4 {[%clk 0:03:02]} 6. Bc4 {[%clk 0:03:02.2]} 6... Nb6 {[%clk 0:03:02.1]}
7. Bb3 {[%clk 0:03:02.9]} 7... d6 {[%clk 0:03:02.6]} 8. exd6 {[%clk 0:03:03.5]}
8... Qxd6 {[%clk 0:03:03.5]} 9. O-O {[%clk 0:03:03.8]} 9... e6 {[%clk
0:03:02.2]} 10. Na3 {[%clk 0:02:59.7]} 10... dxc3 {[%clk 0:03:01.2]} 11. Nb5
{[%clk 0:02:59.5]} 11... Qb8 {[%clk 0:02:36.4]} 12. g3 {[%clk 0:02:23.3]} 12...
Be7 {[%clk 0:02:34]} 13. Bf4 {[%clk 0:02:22.8]} 13... e5 {[%clk 0:02:34]} 14.
Nxe5 {[%clk 0:02:15]} 14... Nxe5 {[%clk 0:02:33.9]} 15. Re1 {[%clk 0:02:15.3]}
15... cxb2 {[%clk 0:02:31.8]} 16. Rb1 {[%clk 0:02:15.1]} 16... Nbd7 {[%clk
0:02:26.5]} 17. Qd5 {[%clk 0:01:14.4]} 17... O-O {[%clk 0:02:22.7]} 18. Rxe5
{[%clk 0:01:12.8]} 18... Nxe5 {[%clk 0:02:20.8]} 19. Bxe5 {[%clk 0:01:11.8]}
19... Be6 {[%clk 0:02:20.5]} 20. Qe4 {[%clk 0:00:49]} 20... Qc8 {[%clk
0:02:17.7]} 21. Bc2 {[%clk 0:00:48.6]} 21... f5 {[%clk 0:02:05]} 22. Qd3 {[%clk
0:00:48.5]} 22... Bc4 {[%clk 0:01:59.7]} 23. Bb3 {[%clk 0:00:41.2]} 23... Bxb3
{[%clk 0:01:59.7]} 24. Qxb3+ {[%clk 0:00:41.1]} 24... Kh8 {[%clk 0:02:00.2]} 25.
Qxb2 {[%clk 0:00:41.1]} 25... Bf6 {[%clk 0:01:58.2]} 26. Nd6 {[%clk 0:00:35.6]}
26... Qd7 {[%clk 0:01:57.3]} 27. Bxf6 {[%clk 0:00:31.4]} 27... Rxf6 {[%clk
0:01:58.2]} 28. Nxb7 {[%clk 0:00:31.1]} 28... Rb6 {[%clk 0:01:56.8]} 29. Qe5
{[%clk 0:00:11.4]} 29... Rxb1+ {[%clk 0:01:55.6]} 0-1

[Event "*** Titled Tuesday Blitz"]
[Site "Chess.com"]
[Date "2020.05.26"]
[Round "9"]
[White "Stronger1799"]
[Black "Machidon"]
[Result "0-1"]
[WhiteElo "2364"]
[BlackElo "2507"]
[TimeControl "180+1"]
[EndTime "11:50:06 PDT"]
[Termination "Machidon won on time"]

1. e4 {[%clk 0:02:51.6]} 1... c6 {[%clk 0:03:00.1]} 2. d4 {[%clk 0:02:51.4]}
2... d5 {[%clk 0:03:01]} 3. e5 {[%clk 0:02:51.8]} 3... Bf5 {[%clk 0:03:00.8]} 4.
h4 {[%clk 0:02:51.9]} 4... Qb6 {[%clk 0:03:00.2]} 5. Nc3 {[%clk 0:02:47.6]} 5...
h6 {[%clk 0:02:59.8]} 6. g4 {[%clk 0:02:45.8]} 6... Bd7 {[%clk 0:02:59.9]} 7.
Nh3 {[%clk 0:02:22.2]} 7... e6 {[%clk 0:02:59.3]} 8. g5 {[%clk 0:02:16]} 8...
hxg5 {[%clk 0:02:56.9]} 9. Nxg5 {[%clk 0:02:15.3]} 9... c5 {[%clk 0:02:55]} 10.
Qf3 {[%clk 0:02:04.9]} 10... Nh6 {[%clk 0:02:54.1]} 11. Bd3 {[%clk 0:02:00.3]}
11... Nc6 {[%clk 0:02:32.9]} 12. dxc5 {[%clk 0:01:03.3]} 12... Bxc5 {[%clk
0:02:28.1]} 13. Bd2 {[%clk 0:00:36.1]} 13... Nxe5 {[%clk 0:02:25.9]} 14. Qg3
{[%clk 0:00:28.3]} 14... Nxd3+ {[%clk 0:02:20.2]} 15. cxd3 {[%clk 0:00:29.2]}
15... Rc8 {[%clk 0:02:03.5]} 16. Rg1 {[%clk 0:00:04]} 16... Nf5 {[%clk
0:02:00.9]} 17. Qf4 {[%clk 0:00:03.9]} 17... Rxh4 {[%clk 0:01:59.5]} 18. Qf3
{[%clk 0:00:01.5]} 18... Rh2 {[%clk 0:01:38.3]} 19. Rg2 {[%clk 0:00:01]} 19...
Rh1+ {[%clk 0:01:36.3]} 20. Ke2 {[%clk 0:00:01.4]} 20... Nd4+ {[%clk 0:01:36.3]}
0-1

[Event "*** Titled Tuesday Blitz"]
[Site "Chess.com"]
[Date "2020.05.26"]
[Round "9"]
[White "ferdipy"]
[Black "Nafania1"]
[Result "0-1"]
[WhiteElo "2273"]
[BlackElo "2456"]
[TimeControl "180+1"]
[EndTime "11:50:08 PDT"]
[Termination "Nafania1 won by resignation"]

1. e4 {[%clk 0:03:00.9]} 1... e6 {[%clk 0:03:00.1]} 2. d4 {[%clk 0:02:58.9]}
2... d5 {[%clk 0:03:00.2]} 3. e5 {[%clk 0:02:59.6]} 3... c5 {[%clk 0:02:59.8]}
4. c3 {[%clk 0:03:00.2]} 4... Nc6 {[%clk 0:02:59.4]} 5. Nf3 {[%clk 0:03:00.7]}
5... Bd7 {[%clk 0:02:59.6]} 6. a3 {[%clk 0:02:59.4]} 6... f6 {[%clk 0:02:58.2]}
7. b4 {[%clk 0:02:55.2]} 7... cxd4 {[%clk 0:02:41.2]} 8. cxd4 {[%clk 0:02:53.1]}
8... fxe5 {[%clk 0:02:40.6]} 9. dxe5 {[%clk 0:02:51.4]} 9... g6 {[%clk
0:02:30.7]} 10. Bd3 {[%clk 0:02:41.7]} 10... Bg7 {[%clk 0:02:30.8]} 11. Qe2
{[%clk 0:02:39.7]} 11... Nge7 {[%clk 0:02:28.5]} 12. b5 {[%clk 0:02:33.8]} 12...
Na5 {[%clk 0:02:26.5]} 13. Nbd2 {[%clk 0:02:31.9]} 13... O-O {[%clk 0:02:24.8]}
14. O-O {[%clk 0:02:30.5]} 14... Rc8 {[%clk 0:02:13.4]} 15. Bb2 {[%clk
0:02:30.6]} 15... Nf5 {[%clk 0:02:06.8]} 16. g4 {[%clk 0:02:25.3]} 16... Nh4
{[%clk 0:02:06.5]} 17. Nxh4 {[%clk 0:02:22.9]} 17... Qxh4 {[%clk 0:02:06.4]} 18.
f4 {[%clk 0:02:22.2]} 18... b6 {[%clk 0:01:40.4]} 19. a4 {[%clk 0:02:20]} 19...
Nb7 {[%clk 0:01:39.6]} 20. Bd4 {[%clk 0:02:11.7]} 20... Nc5 {[%clk 0:01:39.2]}
21. Bc2 {[%clk 0:02:12.2]} 21... g5 {[%clk 0:01:33]} 22. fxg5 {[%clk 0:01:55.1]}
22... Qxg5 {[%clk 0:01:32]} 23. h3 {[%clk 0:01:51.6]} 23... Rxf1+ {[%clk
0:01:21.1]} 24. Rxf1 {[%clk 0:01:50.2]} 24... Rf8 {[%clk 0:01:21.1]} 25. Rxf8+
{[%clk 0:01:45.4]} 25... Bxf8 {[%clk 0:01:21]} 26. Qf3 {[%clk 0:01:41.9]} 26...
Qxd2 {[%clk 0:01:16.8]} 27. Bxh7+ {[%clk 0:01:39.2]} 27... Kxh7 {[%clk
0:01:16.5]} 28. Qf7+ {[%clk 0:01:36.7]} 28... Bg7 {[%clk 0:01:15.5]} 29. Bxc5
{[%clk 0:01:30.8]} 29... bxc5 {[%clk 0:01:15.4]} 30. Qxd7 {[%clk 0:01:31.4]}
30... Qe1+ {[%clk 0:01:11.9]} 31. Kg2 {[%clk 0:01:31.3]} 31... Qe2+ {[%clk
0:01:11.9]} 32. Kg1 {[%clk 0:01:29.2]} 32... Qxe5 {[%clk 0:01:11.9]} 33. Qf7
{[%clk 0:01:24.2]} 33... c4 {[%clk 0:01:07.4]} 34. a5 {[%clk 0:01:20.2]} 34...
c3 {[%clk 0:01:07.1]} 35. Qxa7 {[%clk 0:01:17.7]} 35... Qd4+ {[%clk 0:01:01.2]}
36. Qxd4 {[%clk 0:01:16.8]} 36... Bxd4+ {[%clk 0:01:01.4]} 37. Kf1 {[%clk
0:01:17.7]} 37... c2 {[%clk 0:01:01.7]} 0-1